bitfinex/quotes_ETHUSD_20251118
["timestamp","ask_amount","ask_price","bid_price","bid_amount"]
[1763445013069,0.002,3028.4,3028.3,0.89887323]
[1763445013221,0.1915,3030.0,3028.3,0.89887323]
[1763445013222,0.1915,3030.0,3028.4,0.405504]
[1763445013559,0.283,3029.6,3029.4,1.76021614]
[1763445013933,0.9425,3029.5,3029.4,1.76021614]
[1763445015370,3.3285,3029.5,3029.3,1.76021614]
[1763445015651,0.9425,3029.4,3029.3,1.76021614]
[1763445017053,0.9425,3029.4,3029.0,2.34695486]
[1763445017353,0.283,3029.3,3029.1,2.34695486]
[1763445017555,0.283,3029.3,3029.0,2.34695486]
[1763445017755,0.283,3029.3,3029.0,3.30734104]
[1763445018061,0.283,3029.3,3029.0,2.34695486]
[1763445018233,0.7726,3029.3,3029.0,2.34695486]
[1763445018955,0.283,3029.3,3029.0,2.34695486]
[1763445019524,0.4995,3029.1,3028.9,2.34695486]
[1763445019741,0.7793,3029.3,3028.8,2.34695486]
[1763445019952,0.283,3029.3,3029.1,1.76081721]
[1763445020148,0.283,3029.3,3029.0,1.76081721]
[1763445020149,0.04126502,3029.2,3029.0,1.76081721]
[1763445020370,0.283,3029.3,3028.8,1.76081721]
[1763445020667,0.4963,3029.2,3028.3,0.55395486]
[1763445021373,0.4963,3029.2,3028.1,0.90799264]
[1763445021580,0.4963,3029.2,3028.2,0.38094313]
[1763445021784,0.4914,3029.2,3028.4,0.405504]
[1763445021930,0.283,3029.3,3028.3,0.405504]
[1763445022134,0.283,3029.3,3028.5,0.90699264]
[1763445022480,0.283,3029.3,3028.7,1.31249664]
[1763445023049,0.283,3029.3,3028.7,4.67173525]
[1763445023474,0.1915,3030.0,3029.3,0.405504]
[1763445023689,0.283,3029.9,3029.3,0.405504]
[1763445025044,0.283,3029.8,3029.2,0.864304]
[1763445025249,2.386,3029.7,3029.3,0.17712966]
[1763445025684,2.386,3029.7,3029.3,0.63592966]
[1763445026055,0.283,3029.8,3029.3,0.17712966]
[1763445026751,0.283,3029.8,3029.4,0.405504]
[1763445027190,0.283,3029.8,3029.4,0.864304]
[1763445027491,0.283,3029.8,3029.5,0.4588]
[1763445027701,0.283,3029.8,3029.3,0.17712966]
[1763445027861,0.283,3029.8,3029.6,0.405504]
[1763445028067,0.283,3029.8,3029.7,0.4517]
[1763445028485,0.283,3029.8,3029.7,1.316004]
[1763445028789,0.4963,3030.8,3029.8,0.405504]
[1763445029087,0.4963,3030.8,3029.9,3.9]
[1763445029088,0.283,3030.7,3029.9,3.9]
[1763445029297,0.283,3030.7,3029.7,0.6309508]
[1763445029298,0.2433,3029.9,3029.7,0.1721508]
[1763445029508,0.197,3031.1,3029.7,0.864304]
[1763445029509,0.283,3029.8,3029.7,0.864304]
[1763445029854,0.283,3029.8,3029.7,1.316004]
[1763445031700,0.283,3029.8,3029.6,6.88017332]
[1763445031894,0.197,3031.1,3029.7,1.8504992]
[1763445032131,0.7793,3031.0,3029.8,1.39356725]
[1763445032633,0.4963,3030.9,3029.8,1.39356725]
[1763445032829,0.4963,3031.5,3030.0,3.23844812]
[1763445033130,0.283,3031.4,3030.4,0.405504]
[1763445033433,0.1433,3032.1,3030.6,0.405504]
[1763445033610,0.283,3032.0,3030.6,2.73695948]
[1763445033810,0.283,3032.0,3030.8,0.405504]
[1763445034012,0.7793,3032.0,3030.8,0.405504]
[1763445034209,0.04122827,3031.9,3030.8,0.72507995]
[1763445034408,0.53752827,3031.9,3030.8,6.43427238]
[1763445035338,2.384,3031.8,3030.8,6.43427238]
[1763445035521,2.42522963,3031.8,3030.8,6.43427238]
[1763445035826,1.40329264,3031.7,3030.8,6.43427238]
[1763445036027,0.38285223,3031.6,3030.8,6.43427238]
[1763445037021,1.40329264,3031.7,3030.8,6.88627238]
[1763445037707,1.39799264,3031.7,3030.8,6.43427238]
[1763445037902,0.491,3031.6,3030.8,6.43427238]
[1763445038302,0.0584,3030.9,3030.8,6.43427238]
[1763445038499,0.4402,3030.9,3030.8,6.43427238]
[1763445038936,0.9273,3030.9,3030.8,6.43427238]
[1763445039242,0.283,3030.9,3030.8,7.07769962]
[1763445039936,0.283,3030.9,3030.8,7.53089962]
[1763445040140,0.283,3030.9,3030.8,7.93640362]
[1763445040436,0.283,3030.9,3030.8,8.38840362]
[1763445040640,0.283,3030.9,3030.8,7.07769962]
[1763445040838,0.4402,3030.9,3030.6,1.74480891]
[1763445041041,0.4402,3030.9,3030.5,2.01850486]
[1763445041209,0.4402,3030.9,3030.4,1.74480891]
[1763445041210,0.0049,3030.6,3030.4,1.74480891]
[1763445041405,0.8689,3030.9,3030.3,1.74480891]
[1763445041716,0.3818,3030.9,3030.3,1.74480891]
[1763445042307,0.491,3030.8,3030.3,1.74480891]
[1763445042505,0.0588,3030.4,3029.9,1.74480891]
[1763445042705,0.491,3030.8,3029.9,1.9192898]
[1763445042937,0.491,3030.8,3030.1,6.1400902]
[1763445043143,0.0988,3030.9,3030.1,6.1400902]
[1763445043144,0.1433,3032.1,3030.6,6.1400902]
[1763445043346,0.1433,3032.1,3031.7,6.1400902]
[1763445043659,0.1915,3033.0,3032.0,6.1400902]
[1763445043860,0.1915,3033.0,3032.4,6.1400902]
[1763445044054,0.283,3032.9,3032.4,6.1400902]
[1763445044862,0.0584,3032.5,3031.8,7.88489911]
[1763445045007,0.0584,3032.5,3031.8,1.74480891]
[1763445045207,0.0584,3032.5,3031.9,6.33316109]
[1763445045208,2.384,3032.4,3031.9,6.33316109]
[1763445045878,1.192,3032.4,3031.9,6.33316109]
[1763445046008,0.491,3032.8,3031.9,6.33316109]
[1763445046214,0.283,3032.9,3031.9,7.00542697]
[1763445046436,0.283,3032.9,3032.0,0.48498153]
[1763445046627,0.283,3032.9,3032.0,0.78202238]
[1763445046827,0.774,3032.9,3032.0,0.78202238]
[1763445047110,0.774,3032.9,3032.1,0.1859]
[1763445048013,0.283,3032.9,3032.3,6.1400902]
[1763445048836,0.4901,3032.4,3031.9,0.67226588]
[1763445049048,0.4901,3032.4,3031.8,6.1400902]
[1763445049354,0.0593,3032.8,3031.8,6.1400902]
[1763445049742,0.0593,3032.8,3031.8,6.5920902]
[1763445049940,0.283,3032.9,3031.9,0.452]
[1763445050338,0.0584,3032.0,3031.6,0.65311159]
[1763445050675,0.04121603,3032.8,3031.1,2.33145548]
[1763445050676,0.283,3031.9,3031.3,6.1400902]
[1763445051487,0.283,3031.9,3031.3,6.79901343]
[1763445051774,0.283,3031.9,3031.4,1.35158223]
[1763445051960,0.283,3031.9,3031.5,0.452]
[1763445053570,0.283,3031.9,3031.8,0.4532]
[1763445055274,2.667,3031.9,3031.8,0.9052]
[1763445055739,2.667,3031.9,3031.8,0.4532]
[1763445055938,0.283,3031.9,3031.6,0.452]
[1763445056142,0.0584,3031.6,3031.2,1.74480891]
[1763445056364,0.5888,3031.8,3031.0,1.74480891]
[1763445056562,0.5888,3031.8,3031.0,1.9830798]
[1763445057540,0.0978,3031.8,3031.0,2.4350798]
[1763445057780,0.0978,3031.8,3031.0,3.09585197]
[1763445058140,0.0978,3031.8,3031.1,1.74480891]
[1763445058344,0.283,3031.9,3031.2,1.74480891]
[1763445058742,0.491,3032.8,3031.8,0.4532]
[1763445058954,0.283,3032.7,3031.8,0.4532]
[1763445059364,0.774,3032.7,3031.8,0.4532]
[1763445060259,0.491,3032.6,3031.6,0.452]
[1763445060479,0.491,3032.6,3031.4,1.74480891]
[1763445060779,0.491,3032.6,3031.5,0.452]
[1763445061288,0.1558,3031.6,3031.3,1.74480891]
[1763445061440,0.1558,3031.6,3030.9,2.51835548]
[1763445061441,0.4901,3031.4,3030.9,0.001]
[1763445061786,0.0588,3031.5,3030.9,0.001]
[1763445062001,0.283,3031.3,3030.9,0.001]
[1763445062284,0.04123779,3031.2,3030.9,0.001]
[1763445062457,0.283,3031.3,3030.9,0.001]
[1763445063082,0.491,3031.2,3030.9,0.001]
[1763445063442,0.0588,3031.0,3030.9,0.001]
[1763445063953,0.5455,3031.0,3030.9,0.001]
[1763445065495,3.63279264,3031.0,3030.9,0.001]
[1763445065791,1.6120719,3031.0,3030.9,0.001]
[1763445065992,0.90699264,3031.0,3030.9,0.001]
[1763445066294,1.73579264,3031.0,3030.9,0.001]
[1763445066892,1.27849264,3031.0,3030.9,0.001]
[1763445067408,1.73579264,3031.0,3030.9,0.001]
[1763445069309,1.27849264,3031.0,3030.9,0.001]
[1763445069809,0.0974,3031.6,3030.9,0.001]
[1763445070010,0.283,3031.5,3030.9,0.001]
[1763445070499,0.744,3031.5,3030.9,0.001]
[1763445071811,0.0885,3031.0,3030.9,0.001]
[1763445072159,0.5458,3031.0,3030.9,0.001]
[1763445073231,0.951304,3031.0,3030.9,0.001]
[1763445073362,5.15753781,3031.0,3029.2,1.74480891]
[1763445073563,0.0036,3029.9,3029.0,0.64521042]
[1763445073761,0.4504,3029.8,3029.0,1.37279264]
[1763445073984,0.4504,3029.8,3029.0,0.90699264]
[1763445074301,0.4504,3029.8,3028.9,1.09289264]
[1763445074463,0.50225821,3029.7,3028.7,1.94210891]
[1763445074768,0.50225821,3029.7,3028.3,0.4668]
[1763445075292,0.50225821,3029.7,3028.3,0.001]
[1763445075293,1.31249664,3029.4,3028.3,0.001]
[1763445075482,0.78652233,3029.3,3028.3,0.001]
[1763445075680,0.283,3029.2,3028.3,0.001]
[1763445075910,0.2555,3028.4,3028.3,0.001]
[1763445076205,0.5385,3028.4,3028.3,0.001]
[1763445076417,0.9958,3028.4,3028.3,0.001]
[1763445076702,0.283,3028.4,3028.3,0.001]
[1763445077026,0.3711,3028.4,3028.3,0.001]
[1763445077460,0.8284,3028.4,3028.3,0.001]
[1763445077663,0.283,3028.4,3028.3,0.001]
[1763445077892,0.3748,3028.4,3028.3,0.001]
[1763445078101,0.8284,3028.4,3028.3,0.001]
[1763445078278,0.3748,3028.4,3028.3,0.001]
[1763445078481,0.8284,3028.4,3028.3,0.001]
[1763445079208,0.3748,3028.4,3028.3,0.001]
[1763445079982,0.283,3028.4,3028.3,0.001]
[1763445080180,0.8285,3028.4,3028.3,0.001]
[1763445080818,0.04127183,3028.7,3028.3,0.4766]
[1763445081021,0.002,3031.0,3028.6,0.4756]
[1763445081316,0.283,3029.7,3028.6,0.4756]
[1763445081618,0.7428,3029.7,3028.6,0.4756]
[1763445081912,0.7428,3029.7,3028.3,0.001]
[1763445082099,0.4598,3029.6,3028.3,0.4554]
[1763445083181,0.4598,3029.6,3028.3,0.001]
[1763445085313,2.386,3029.5,3028.3,0.001]
[1763445085484,1.19157264,3029.4,3028.3,0.001]
[1763445085680,0.04126365,3029.3,3028.3,0.001]
[1763445086005,0.1674,3028.4,3028.3,0.001]
[1763445086325,0.4504,3028.4,3028.3,0.001]
[1763445086617,0.283,3028.4,3028.3,0.001]
[1763445086982,0.87337592,3028.4,3028.3,0.001]
[1763445087182,0.8321,3028.4,3028.3,0.001]
[1763445087378,0.283,3028.4,3028.3,0.001]
[1763445087583,0.376,3028.4,3028.3,0.001]
[1763445087895,0.8284,3028.4,3028.3,0.001]
[1763445088081,0.376,3028.4,3028.3,0.001]
[1763445088283,0.283,3028.4,3028.3,0.001]
[1763445089444,0.283,3028.4,3028.3,0.4766]
[1763445089617,0.1674,3029.0,3028.3,0.931]
[1763445089923,0.283,3028.9,3028.3,0.931]
[1763445090299,0.1674,3029.0,3028.3,0.931]
[1763445090496,0.283,3028.9,3028.4,0.4544]
[1763445090806,0.04127047,3028.8,3028.3,0.001]
[1763445091382,0.4598,3028.7,3028.3,0.001]
[1763445091627,0.0893,3028.4,3028.3,0.001]
[1763445092607,0.5454,3028.4,3028.3,0.001]
[1763445092808,0.04127319,3028.6,3028.3,0.001]
[1763445093025,0.093,3028.4,3028.3,0.001]
[1763445093535,0.5454,3028.4,3028.3,0.001]
[1763445094419,0.950904,3028.4,3028.3,0.001]
[1763445094627,1.7919786,3028.4,3028.3,0.001]
[1763445095229,8.38704494,3028.4,3028.3,0.001]
[1763445095448,3.85069532,3028.4,3028.3,0.001]
[1763445095606,3.89197124,3028.4,3028.3,0.001]
[1763445095807,6.00104494,3028.4,3028.3,0.001]
[1763445096239,1.31249664,3028.3,3028.1,0.001]
[1763445096447,1.31249664,3028.3,3027.8,0.001]
[1763445096448,0.0053,3028.0,3027.8,0.001]
[1763445096613,0.22008273,3027.9,3026.0,0.001]
[1763445096948,7.45868684,3027.7,3026.0,0.001]
[1763445097106,1.31249664,3027.6,3026.0,0.001]
[1763445097306,0.486204,3027.4,3026.0,0.001]
[1763445097715,0.948604,3027.4,3026.0,0.001]
[1763445098610,0.948604,3027.4,3026.1,0.1941]
[1763445098927,0.948604,3027.4,3026.2,0.4565]
[1763445098928,1.231604,3027.4,3026.2,0.4565]
[1763445099345,1.231604,3027.4,3026.1,0.1941]
[1763445099749,2.17988619,3027.4,3026.0,0.001]
[1763445100227,5.48305062,3027.4,3026.0,0.001]
[1763445100427,6.2828493,3027.4,3026.0,0.001]
[1763445101021,2.97968487,3027.4,3026.0,0.001]
[1763445101225,2.17988619,3027.4,3026.1,0.1941]
[1763445101455,1.89688619,3027.4,3026.1,0.1941]
[1763445101845,1.73309264,3027.4,3026.2,0.4565]
[1763445102658,2.13859664,3027.4,3026.2,0.4565]
[1763445102957,1.85559664,3027.4,3026.2,0.4565]
[1763445103160,2.38045529,3027.4,3026.2,0.4565]
[1763445104032,2.09745529,3027.4,3026.1,0.1941]
[1763445104359,2.38045529,3027.4,3026.1,0.6506]
[1763445105064,2.42174484,3027.4,3026.1,0.6506]
[1763445105358,3.61474484,3027.4,3026.1,0.1941]
[1763445105532,2.42174484,3027.4,3026.1,0.1941]
[1763445105728,2.42174484,3027.4,3026.2,0.4565]
[1763445105928,2.38045529,3027.4,3026.2,0.4565]
[1763445106452,2.38045529,3027.4,3026.1,0.1941]
[1763445106628,5.68361972,3027.4,3026.0,0.001]
[1763445109465,1.31929664,3027.3,3026.0,0.001]
[1763445109760,7.93551321,3026.7,3026.0,0.001]
[1763445109981,8.21851321,3026.7,3026.0,0.001]
[1763445110130,8.68091321,3026.7,3026.0,0.001]
[1763445110832,1.31249664,3026.6,3026.0,0.001]
[1763445111164,0.413004,3026.4,3026.0,0.001]
[1763445111375,7.83621321,3026.1,3026.0,0.001]
[1763445111668,1.67469664,3026.1,3026.0,0.001]
[1763445111840,2.17840393,3026.1,3026.0,0.001]
[1763445112047,2.13709664,3026.1,3026.0,0.001]
[1763445112366,1.67469664,3026.1,3026.0,0.001]
[1763445112562,1.5591663,3026.1,3026.0,0.001]
[1763445112730,1.8421663,3026.1,3026.0,0.001]
[1763445112933,1.59549664,3026.1,3026.0,0.001]
[1763445113264,2.14089664,3026.1,3026.0,0.001]
[1763445113569,1.68219664,3026.1,3026.0,0.001]
[1763445114154,2.14089664,3026.1,3026.0,0.001]
[1763445115352,4.52889664,3026.1,3026.0,0.001]
[1763445115669,4.5230863,3026.1,3026.0,0.001]
[1763445116971,4.4363863,3026.1,3026.0,0.001]
[1763445117274,3.7877863,3026.1,3026.0,0.001]
[1763445117475,9.03830287,3026.1,3026.0,0.001]
[1763445117842,2.5937863,3026.1,3026.0,0.001]
[1763445118041,1.72720393,3026.1,3026.0,0.001]
[1763445118261,1.68589664,3026.1,3026.0,0.001]
[1763445118744,1.72720393,3026.1,3026.0,0.001]
[1763445118973,2.18220393,3026.1,3026.0,0.001]
[1763445120479,1.72720393,3026.1,3026.0,0.001]
[1763445120780,1.89992432,3026.1,3026.0,0.001]
[1763445120966,1.85861703,3026.1,3026.0,0.001]
[1763445121356,1.07971303,3026.1,3026.0,0.468]
[1763445121567,1.18999264,3026.1,3026.0,0.468]
[1763445121772,1.18999264,3026.1,3026.0,0.9245]
[1763445121968,1.18999264,3026.1,3026.0,0.468]
[1763445122151,1.68219664,3026.1,3026.0,0.001]
[1763445122568,1.7637163,3026.1,3026.0,0.001]
[1763445122774,0.002,3026.7,3026.0,0.9245]
[1763445122977,0.283,3026.6,3026.1,0.1941]
[1763445123579,0.283,3026.6,3026.2,0.4565]
[1763445123778,0.283,3026.6,3026.5,0.467]
[1763445124249,0.283,3026.6,3026.5,0.9235]
[1763445124447,0.283,3026.6,3026.1,0.1941]
[1763445124788,0.405504,3026.5,3026.0,0.001]
[1763445125092,0.405504,3026.5,3026.1,0.4565]
[1763445125272,0.002,3026.7,3026.1,0.4565]
[1763445125273,0.90699264,3026.3,3026.1,0.4565]
[1763445125472,0.283,3026.4,3026.1,0.4565]
[1763445125678,0.283,3026.4,3026.3,0.467]
[1763445126360,0.283,3026.4,3026.3,0.9258]
[1763445128199,0.002,3026.7,3026.3,0.9258]
[1763445128370,0.283,3026.4,3026.0,0.001]
[1763445128573,0.283,3026.4,3026.3,0.4675]
[1763445128986,0.283,3026.4,3026.3,0.9263]
[1763445132295,0.283,3026.4,3026.0,0.001]
[1763445132596,0.283,3026.4,3026.0,0.4598]
[1763445133095,0.283,3026.4,3026.3,0.4675]
[1763445134006,0.283,3026.4,3026.3,0.9263]
[1763445135397,3.57799264,3026.4,3026.3,0.9263]
[1763445135602,3.57799264,3026.4,3026.3,0.4675]
[1763445135603,1.18999264,3026.4,3026.3,0.4675]
[1763445136023,1.18999264,3026.4,3026.3,0.9263]
[1763445136809,0.90699264,3026.3,3026.0,0.4598]
[1763445136972,0.283,3026.4,3026.0,0.001]
[1763445137372,0.405504,3026.2,3026.0,0.001]
[1763445137704,0.50060729,3026.1,3026.0,0.001]
[1763445138107,0.954604,3026.1,3026.0,0.001]
[1763445139278,0.99591129,3026.1,3026.0,0.001]
[1763445139578,1.14489439,3026.1,3026.0,0.001]
[1763445140125,1.05509439,3026.1,3026.0,0.001]
[1763445140342,0.954604,3026.1,3026.0,0.001]
[1763445140744,0.864804,3026.1,3026.0,0.001]
[1763445140950,0.3728,3026.4,3026.0,0.001]
[1763445141094,0.283,3026.4,3026.0,0.001]
[1763445141303,0.0713,3026.1,3026.0,0.001]
[1763445141612,0.283,3026.4,3026.0,0.001]
[1763445141797,0.405504,3026.3,3026.0,0.001]
[1763445142430,0.0713,3026.1,3026.0,0.001]
[1763445142795,0.405504,3026.3,3026.0,0.001]
[1763445143317,0.4976,3026.1,3026.0,0.001]
[1763445145035,0.04130592,3026.2,3026.0,0.001]
[1763445145198,2.388,3026.1,3026.0,0.001]
[1763445145529,3.57434304,3026.1,3026.0,0.001]
[1763445145698,3.57434304,3026.1,3026.0,0.4707]
[1763445146032,2.388,3026.1,3026.0,0.9403]
[1763445146434,0.283,3026.4,3026.0,0.4707]
[1763445146606,0.283,3026.4,3026.1,0.1844]
[1763445147129,0.283,3026.4,3026.1,0.654]
[1763445147319,0.0713,3026.2,3026.0,0.001]
[1763445147834,0.405504,3026.3,3026.0,0.001]
[1763445148010,0.0713,3026.1,3026.0,0.001]
[1763445148214,0.11260729,3026.1,3026.0,0.001]
[1763445148414,0.58650729,3026.1,3026.0,0.001]
[1763445148611,0.950704,3026.1,3026.0,0.001]
[1763445150135,1.78092532,3026.1,3026.0,0.001]
[1763445151005,5.99250141,3026.1,3026.0,0.001]
[1763445151407,6.0338087,3026.1,3026.0,0.001]
[1763445151605,2.72922525,3026.1,3026.0,0.001]
[1763445152122,2.25532525,3026.1,3026.0,0.001]
[1763445152318,1.78092532,3026.1,3026.0,0.001]
[1763445155220,5.07591796,3026.1,3026.0,0.001]
[1763445155437,4.60201796,3026.1,3026.0,0.001]
[1763445155608,2.68791796,3026.1,3026.0,0.001]
[1763445155814,1.78092532,3026.1,3026.0,0.001]
[1763445158113,1.30702532,3026.1,3026.0,0.001]
[1763445158589,0.405504,3026.1,3026.0,0.001]
[1763445158932,0.497904,3026.1,3026.0,0.001]
[1763445159319,0.405504,3026.1,3026.0,0.001]
[1763445160459,0.002,3026.3,3026.0,0.9664]
[1763445160774,0.407504,3026.3,3026.0,0.9664]
[1763445160957,0.04130592,3026.2,3026.0,0.001]
[1763445161131,0.407504,3026.3,3026.0,0.001]
[1763445161840,0.405504,3026.1,3026.0,0.001]
[1763445162078,0.882304,3026.1,3026.0,0.001]
[1763445162498,0.405504,3026.1,3026.0,0.001]
[1763445162855,0.91961129,3026.1,3026.0,0.001]
[1763445163158,1.17821479,3026.1,3026.0,0.001]
[1763445165250,4.47320743,3026.1,3026.0,0.001]
[1763445165582,2.08520743,3026.1,3026.0,0.001]
[1763445167695,2.00870743,3026.1,3026.0,0.001]
[1763445167902,2.08520743,3026.1,3026.0,0.001]
[1763445168459,2.12651472,3026.1,3026.0,0.001]
[1763445168658,1.31249664,3026.0,3025.6,0.001]
[1763445168859,7.95365723,3025.7,3025.6,0.001]
[1763445169294,8.02615723,3025.7,3025.6,0.001]
[1763445169488,0.405504,3025.3,3024.4,2.22420891]
[1763445169657,8.23265723,3025.2,3024.4,0.4794]
[1763445169874,9.05592295,3025.2,3024.4,0.4794]
[1763445171484,9.13242295,3025.2,3024.4,0.4794]
[1763445171684,9.05592295,3025.2,3024.4,0.4794]
[1763445171910,9.13242295,3025.2,3024.1,0.4794]
[1763445172291,12.43798952,3025.2,3024.1,0.4794]
[1763445172497,1.31249664,3025.1,3023.8,0.1941]
[1763445172674,1.31249664,3024.5,3023.8,0.6735]
[1763445172873,0.405504,3024.3,3023.8,0.6735]
[1763445173096,0.405504,3024.3,3023.8,0.1941]
[1763445173316,0.405504,3024.3,3024.2,0.486]
[1763445174015,0.405504,3024.3,3024.0,0.6669]
[1763445174189,0.405504,3024.3,3024.2,0.486]
[1763445174391,0.405504,3024.3,3024.0,0.1875]
[1763445174594,0.405504,3024.3,3023.8,0.1941]
[1763445175112,0.405504,3024.3,3023.8,0.6735]
[1763445175277,0.405504,3024.1,3023.8,0.6735]
[1763445175485,0.283,3024.0,3023.9,0.4794]
[1763445175808,1.477,3024.0,3023.9,0.4794]
[1763445175978,1.477,3024.0,3023.9,0.9654]
[1763445176180,0.90699264,3024.5,3023.9,0.9654]
[1763445176383,6.16436059,3024.9,3023.8,0.1941]
[1763445176384,0.90699264,3024.8,3024.4,0.486]
[1763445176582,0.405504,3025.0,3024.4,0.486]
[1763445176810,0.405504,3025.0,3024.3,0.4794]
[1763445177401,0.405504,3024.8,3024.3,0.4794]
[1763445177803,0.04132641,3024.7,3024.2,0.1877]
[1763445178009,1.31249664,3024.8,3024.4,0.4794]
[1763445178308,2.08848236,3024.8,3024.7,0.486]
[1763445179139,2.2222074,3024.8,3024.2,0.1877]
[1763445179304,2.2222074,3024.8,3023.8,0.1941]
[1763445179641,2.2222074,3024.8,3023.8,0.6735]
[1763445179825,0.405504,3024.6,3023.8,0.6735]
[1763445180132,0.32432914,3024.5,3023.9,0.4794]
[1763445180560,1.31249664,3024.4,3023.5,0.1877]
[1763445180828,1.31249664,3024.4,3023.6,0.4794]
[1763445181038,0.405504,3024.2,3023.6,0.4794]
[1763445181266,1.0532378,3025.8,3024.3,0.6737]
[1763445181434,0.90699264,3025.3,3024.4,0.9654]
[1763445181600,0.283,3025.2,3024.5,0.4794]
[1763445181952,0.405504,3025.1,3024.5,0.4794]
[1763445184198,0.405504,3025.1,3024.3,0.1877]
[1763445184396,0.405504,3024.9,3024.3,0.1877]
[1763445184626,0.32432504,3024.8,3024.3,0.1877]
[1763445184842,0.283,3024.8,3024.4,0.4794]
[1763445185224,2.39,3024.7,3024.4,0.4794]
[1763445185834,2.39,3024.7,3024.6,0.486]
[1763445186037,2.39,3024.7,3024.4,0.4794]
[1763445186334,2.39,3024.7,3024.6,0.499]
[1763445186546,3.29699264,3024.7,3024.6,0.499]
[1763445186744,3.29699264,3024.7,3024.6,0.9504]
[1763445189537,3.29699264,3024.7,3024.6,0.499]
[1763445190104,0.90699264,3024.7,3024.6,0.499]
[1763445190324,0.90699264,3024.7,3024.6,0.9504]
[1763445190742,0.283,3024.8,3024.6,0.9504]
[1763445190902,0.283,3024.8,3024.7,0.9504]
[1763445191101,0.283,3024.8,3024.7,0.499]
[1763445191324,0.283,3024.8,3024.7,0.9504]
[1763445193430,0.002,3025.2,3024.7,0.9504]
[1763445193614,0.002,3025.2,3024.4,0.001]
[1763445193615,0.002,3025.2,3025.1,0.6947]
[1763445193818,0.285,3025.2,3025.1,0.6947]
[1763445194130,0.285,3025.2,3025.1,1.1461]
[1763445195418,3.58199264,3025.2,3024.7,0.4514]
[1763445195632,0.405504,3025.0,3024.4,0.001]
[1763445195819,0.04132368,3024.9,3024.4,0.001]
[1763445196164,0.405504,3025.0,3024.4,0.4524]
[1763445197621,0.04132368,3024.9,3024.4,0.4524]
[1763445197826,0.405504,3025.0,3024.4,0.4524]
[1763445198346,0.405504,3025.0,3024.4,0.001]
[1763445198647,0.493004,3024.5,3024.4,0.001]
[1763445198945,0.405504,3024.4,3024.0,0.001]
[1763445199109,1.31249664,3024.0,3023.7,0.001]
[1763445199315,0.596204,3023.8,3023.7,0.001]
[1763445199649,0.63754271,3023.8,3023.7,0.001]
[1763445199973,1.95599664,3023.8,3023.7,0.001]
[1763445200275,0.88371475,3023.8,3023.7,0.001]
[1763445200970,1.79070739,3023.8,3023.7,0.001]
[1763445201174,2.50737888,3023.8,3023.7,0.001]
[1763445201675,0.88371475,3023.8,3023.7,0.001]
[1763445201870,0.88371475,3023.8,3022.5,0.4952]
[1763445201871,0.90699264,3023.7,3022.5,0.4952]
[1763445202073,0.405504,3023.2,3022.4,0.1809]
[1763445202274,0.405504,3023.0,3022.5,0.4952]
[1763445202651,6.56986459,3023.0,3022.5,0.4952]
[1763445202857,0.90699264,3022.9,3022.5,0.4952]
[1763445203266,1.42725043,3022.9,3022.5,0.4952]
[1763445203979,1.59485043,3022.9,3022.4,0.1809]
[1763445204276,1.42725043,3022.9,3022.5,0.4952]
[1763445205277,2.39,3022.8,3022.5,0.4952]
[1763445205485,1.18999264,3022.7,3022.5,0.4952]
[1763445205780,0.90699264,3022.5,3022.1,0.4952]
[1763445205979,0.94834913,3022.5,3022.1,0.4952]
[1763445206275,0.90699264,3022.5,3022.4,0.4516]
[1763445206650,0.90699264,3022.5,3022.0,0.17050699]
[1763445206846,0.405504,3022.4,3022.0,0.17050699]
[1763445207179,0.283,3022.3,3022.0,0.17050699]
[1763445207366,0.90699264,3022.1,3021.7,0.1809]
[1763445207568,0.04136333,3022.0,3021.7,0.1809]
[1763445207769,0.283,3021.9,3021.7,0.1809]
[1763445208183,0.283,3021.9,3021.8,0.9468]
[1763445209070,0.405504,3021.8,3021.3,0.1809]
[1763445209382,1.08274304,3021.7,3021.3,0.1809]
[1763445209581,0.90699264,3021.7,3021.3,0.1809]
[1763445209884,1.42749757,3021.7,3021.3,0.6761]
[1763445210378,1.42749757,3021.7,3021.6,0.4516]
[1763445210583,0.80350493,3021.7,3021.6,0.4516]
[1763445210764,0.80350493,3021.7,3021.6,0.9468]
[1763445211162,2.18629757,3021.7,3021.3,0.1809]
[1763445211684,2.18629757,3021.7,3021.6,0.4516]
[1763445211685,1.71049757,3021.7,3021.6,0.4516]
[1763445212382,1.18999264,3021.7,3021.4,0.42629339]
[1763445212584,1.18999264,3021.7,3021.3,0.1809]
[1763445213086,0.283,3021.7,3021.6,0.4283]
[1763445213384,0.283,3021.7,3021.3,0.1809]
[1763445215494,2.39,3021.6,3021.3,0.1809]
[1763445216203,0.52053319,3021.7,3021.5,0.4283]
[1763445216393,0.52053319,3021.7,3021.6,0.8566]
[1763445216716,0.52053319,3021.7,3021.3,0.51701656]
[1763445216717,0.283,3021.7,3021.3,0.51701656]
[1763445216866,0.283,3021.7,3021.3,0.08871656]
[1763445217819,0.405504,3021.6,3020.9,0.1957]
[1763445218111,0.90699264,3020.9,3020.1,0.001]
[1763445218294,0.283,3020.8,3020.1,0.001]
[1763445218669,0.7808,3020.8,3020.1,0.001]
[1763445218869,0.405504,3020.7,3020.1,0.001]